[Event "Titled Tuesday Blitz August 23 Late 2022"]
[White "Tahbaz, Arash"]
[Black "Nazaretyan, Tigran"]
[WhiteFideId "12528846"]
[BlackFideId "24162345"]
[WhiteElo "2378"]
[BlackElo "2183"]
[Result "0-1"]
[Round "07"]
[TimeControl "180+1"]
[Date "2022.08.23"]
[WhiteClock "0:00:29"]
[BlackClock "0:00:11"]

1. Nf3 {[%clk 0:03:00]}  Nf6 {[%clk 0:02:58]} 2. g3 {[%clk 0:03:01]}  d5 {[%clk 0:02:55]} 3. Bg2 {[%clk 0:03:02]}  c6 {[%clk 0:02:53]} 4. O-O {[%clk 0:03:03]}  Bg4 {[%clk 0:02:53]} 5. d3 {[%clk 0:03:04]}  Nbd7 {[%clk 0:02:53]} 6. c4 {[%clk 0:03:04]}  e6 {[%clk 0:02:52]} 7. cxd5 {[%clk 0:03:04]}  exd5 {[%clk 0:02:52]} 8. Nc3 {[%clk 0:03:04]}  Bc5 {[%clk 0:02:52]} 9. a3 {[%clk 0:02:58]}  a5 {[%clk 0:02:50]} 10. Qb3 {[%clk 0:02:56]}  Qb6 {[%clk 0:02:45]} 11. Qc2 {[%clk 0:02:55]}  Qa7 {[%clk 0:02:31]} 12. Bf4 {[%clk 0:02:41]}  O-O {[%clk 0:02:30]} 13. Na4 {[%clk 0:02:34]}  Rfe8 {[%clk 0:02:25]} 14. Nxc5 {[%clk 0:02:32]}  Qxc5 {[%clk 0:02:25]} 15. Qd2 {[%clk 0:02:30]}  a4 {[%clk 0:02:22]} 16. h3 {[%clk 0:02:27]}  Bh5 {[%clk 0:02:21]} 17. g4 {[%clk 0:02:27]}  Bg6 {[%clk 0:02:17]} 18. Rac1 {[%clk 0:02:20]}  Qb6 {[%clk 0:02:11]} 19. Nh4 {[%clk 0:02:19]}  Nc5 {[%clk 0:01:54]} 20. Be3 {[%clk 0:02:13]}  Nb3 {[%clk 0:01:53]} 21. Bxb6 {[%clk 0:02:06]}  Nxd2 {[%clk 0:01:53]} 22. Rfe1 {[%clk 0:02:06]}  Nb3 {[%clk 0:01:46]} 23. Rcd1 {[%clk 0:02:05]}  Re7 {[%clk 0:01:36]} 24. f4 {[%clk 0:01:56]}  d4 {[%clk 0:01:24]} 25. Nf3 {[%clk 0:01:54]}  c5 {[%clk 0:01:20]} 26. Ne5 {[%clk 0:01:54]}  Nd7 {[%clk 0:01:10]} 27. Nc4 {[%clk 0:01:45]}  f5 {[%clk 0:01:04]} 28. Bxb7 {[%clk 0:01:42]}  Nxb6 {[%clk 0:01:01]} 29. Bxa8 {[%clk 0:01:41]}  Nxa8 {[%clk 0:01:01]} 30. Ne5 {[%clk 0:01:34]}  Nc7 {[%clk 0:01:00]} 31. Kf2 {[%clk 0:01:32]}  Nd5 {[%clk 0:01:00]} 32. Kg3 {[%clk 0:01:29]}  Ne3 {[%clk 0:00:58]} 33. Rb1 {[%clk 0:01:28]}  Be8 {[%clk 0:00:57]} 34. g5 {[%clk 0:01:25]}  Bh5 {[%clk 0:00:55]} 35. h4 {[%clk 0:01:19]}  Rb7 {[%clk 0:00:48]} 36. Nc6 {[%clk 0:01:13]}  Nc2 {[%clk 0:00:44]} 37. Kf2 {[%clk 0:01:03]}  Nxe1 {[%clk 0:00:42]} 38. Kxe1 {[%clk 0:01:04]}  h6 {[%clk 0:00:34]} 39. Ne5 {[%clk 0:01:03]}  hxg5 {[%clk 0:00:34]} 40. hxg5 {[%clk 0:01:04]}  Bf7 {[%clk 0:00:32]} 41. g6 {[%clk 0:01:03]}  Bd5 {[%clk 0:00:31]} 42. Kf2 {[%clk 0:01:03]}  Nd2 {[%clk 0:00:27]} 43. Rc1 {[%clk 0:01:02]}  Nb3 {[%clk 0:00:27]} 44. Rh1 {[%clk 0:01:02]}  Kf8 {[%clk 0:00:23]} 45. Rh8+ {[%clk 0:00:59]}  Bg8 {[%clk 0:00:23]} 46. Rh5 {[%clk 0:00:59]}  Be6 {[%clk 0:00:22]} 47. Rh8+ {[%clk 0:01:00]}  Ke7 {[%clk 0:00:22]} 48. Ra8 {[%clk 0:01:00]}  Bd7 {[%clk 0:00:20]} 49. Rg8 {[%clk 0:00:58]}  Kf6 {[%clk 0:00:16]} 50. Rf8+ {[%clk 0:00:58]}  Ke6 {[%clk 0:00:17]} 51. Rf7 {[%clk 0:00:58]}  Bc8 {[%clk 0:00:16]} 52. Rf8 {[%clk 0:00:57]}  Rc7 {[%clk 0:00:16]} 53. Re8+ {[%clk 0:00:58]}  Kd5 {[%clk 0:00:16]} 54. Rd8+ {[%clk 0:00:58]}  Ke6 {[%clk 0:00:15]} 55. Re8+ {[%clk 0:00:58]}  Kf6 {[%clk 0:00:15]} 56. Rf8+ {[%clk 0:00:56]}  Ke7 {[%clk 0:00:15]} 57. Rg8 {[%clk 0:00:54]}  Kd6 {[%clk 0:00:14]} 58. Nf7+ {[%clk 0:00:53]}  Kc6 {[%clk 0:00:11]} 59. Rxg7 {[%clk 0:00:53]}  Be6 {[%clk 0:00:11]} 60. Rh7 {[%clk 0:00:53]}  Bxf7 {[%clk 0:00:11]} 61. Rxf7 {[%clk 0:00:53]}  Rc8 {[%clk 0:00:10]} 62. g7 {[%clk 0:00:53]}  Rg8 {[%clk 0:00:10]} 63. Kg3 {[%clk 0:00:35]}  Kd6 {[%clk 0:00:11]} 64. Kh4 {[%clk 0:00:36]}  Ke6 {[%clk 0:00:11]} 65. Ra7 {[%clk 0:00:36]}  Kf6 {[%clk 0:00:11]} 66. Ra6+ {[%clk 0:00:37]}  Kxg7 {[%clk 0:00:10]} 67. Kg5 {[%clk 0:00:38]}  Kf7+ {[%clk 0:00:10]} 68. Kxf5 {[%clk 0:00:38]}  Rg2 {[%clk 0:00:10]} 69. Rxa4 {[%clk 0:00:36]}  Rxe2 {[%clk 0:00:10]} 70. Ra7+ {[%clk 0:00:37]}  Ke8 {[%clk 0:00:10]} 71. a4 {[%clk 0:00:30]}  Nc1 {[%clk 0:00:10]} 72. a5 {[%clk 0:00:30]}  Nxd3 {[%clk 0:00:10]} 73. a6 {[%clk 0:00:31]}  Rxb2 {[%clk 0:00:10]} 74. Rb7 {[%clk 0:00:29]}  Ra2 {[%clk 0:00:10]} 75. a7 {[%clk 0:00:30]}  c4 {[%clk 0:00:10]} 76. Ke6 {[%clk 0:00:29]}  Nc5+ {[%clk 0:00:10]} 77. Kd5 {[%clk 0:00:29]}  Nxb7 {[%clk 0:00:11]} 0-1


[Site "https://www.chess.com"]

[Event "Titled Tuesday Blitz August 23 Late 2022"]
[White "Wan, Joseph"]
[Black "Postnikov, Daniil"]
[WhiteFideId "2069890"]
[BlackFideId "4166329"]
[WhiteElo "2198"]
[BlackElo "2261"]
[Result "1-0"]
[Round "07"]
[TimeControl "180+1"]
[Date "2022.08.23"]
[WhiteClock "0:00:02"]
[BlackClock "0:00:01"]

1. d4 {[%clk 0:03:00]}  Nf6 {[%clk 0:02:58]} 2. Bf4 {[%clk 0:02:59]}  c5 {[%clk 0:02:57]} 3. e3 {[%clk 0:02:59]}  g6 {[%clk 0:02:57]} 4. Nf3 {[%clk 0:02:51]}  Bg7 {[%clk 0:02:57]} 5. h3 {[%clk 0:02:51]}  O-O {[%clk 0:02:56]} 6. Be2 {[%clk 0:02:50]}  d5 {[%clk 0:02:57]} 7. O-O {[%clk 0:02:48]}  Nc6 {[%clk 0:02:57]} 8. c3 {[%clk 0:02:43]}  Nd7 {[%clk 0:02:56]} 9. Nbd2 {[%clk 0:02:38]}  e5 {[%clk 0:02:55]} 10. dxe5 {[%clk 0:02:38]}  Ndxe5 {[%clk 0:02:55]} 11. Nxe5 {[%clk 0:02:39]}  Nxe5 {[%clk 0:02:55]} 12. Nf3 {[%clk 0:02:39]}  Nxf3+ {[%clk 0:02:48]} 13. Bxf3 {[%clk 0:02:40]}  Be6 {[%clk 0:02:48]} 14. c4 {[%clk 0:02:28]}  dxc4 {[%clk 0:02:35]} 15. Bxb7 {[%clk 0:02:26]}  Bxb2 {[%clk 0:02:25]} 16. Bxa8 {[%clk 0:02:17]}  Qxa8 {[%clk 0:02:26]} 17. Rb1 {[%clk 0:02:06]}  c3 {[%clk 0:02:24]} 18. Bh6 {[%clk 0:01:59]}  Rd8 {[%clk 0:02:23]} 19. Qa4 {[%clk 0:01:54]}  Bf5 {[%clk 0:02:15]} 20. Qh4 {[%clk 0:01:19]}  f6 {[%clk 0:00:35]} 21. Qxf6 {[%clk 0:01:03]}  Rd7 {[%clk 0:00:35]} 22. Rbd1 {[%clk 0:00:48]}  c2 {[%clk 0:00:34]} 23. Qxb2 {[%clk 0:00:30]}  cxd1=Q {[%clk 0:00:32]} 24. Rxd1 {[%clk 0:00:30]}  Rxd1+ {[%clk 0:00:33]} 25. Kh2 {[%clk 0:00:30]}  Rd7 {[%clk 0:00:32]} 26. f3 {[%clk 0:00:29]}  Qe8 {[%clk 0:00:29]} 27. e4 {[%clk 0:00:27]}  Be6 {[%clk 0:00:29]} 28. Qe5 {[%clk 0:00:24]}  Rf7 {[%clk 0:00:23]} 29. Be3 {[%clk 0:00:23]}  Bd7 {[%clk 0:00:22]} 30. Qxc5 {[%clk 0:00:21]}  Qb8+ {[%clk 0:00:23]} 31. e5 {[%clk 0:00:21]}  Kg7 {[%clk 0:00:17]} 32. Qd5 {[%clk 0:00:19]}  Qe8 {[%clk 0:00:14]} 33. Qd4 {[%clk 0:00:19]}  Be6 {[%clk 0:00:14]} 34. a4 {[%clk 0:00:19]}  Qc6 {[%clk 0:00:09]} 35. Bg5 {[%clk 0:00:17]}  Rd7 {[%clk 0:00:09]} 36. Qf4 {[%clk 0:00:15]}  Rf7 {[%clk 0:00:09]} 37. Qd4 {[%clk 0:00:14]}  Qd5 {[%clk 0:00:09]} 38. Qe3 {[%clk 0:00:13]}  h5 {[%clk 0:00:06]} 39. Bf6+ {[%clk 0:00:11]}  Kh7 {[%clk 0:00:06]} 40. Qc3 {[%clk 0:00:10]}  Qc4 {[%clk 0:00:05]} 41. Qd2 {[%clk 0:00:08]}  Qxa4 {[%clk 0:00:05]} 42. Qg5 {[%clk 0:00:08]}  Qc2 {[%clk 0:00:03]} 43. Qe3 {[%clk 0:00:07]}  Qf5 {[%clk 0:00:03]} 44. Kg3 {[%clk 0:00:05]}  a5 {[%clk 0:00:04]} 45. Qd2 {[%clk 0:00:05]}  a4 {[%clk 0:00:04]} 46. Qd8 {[%clk 0:00:04]}  Rxf6 {[%clk 0:00:02]} 47. exf6 {[%clk 0:00:05]}  Qe5+ {[%clk 0:00:02]} 48. f4 {[%clk 0:00:06]}  Qc3+ {[%clk 0:00:02]} 49. Kh2 {[%clk 0:00:04]}  Qb4 {[%clk 0:00:01]} 50. Qc7+ {[%clk 0:00:03]}  Kh6 {[%clk 0:00:01]} 51. Qg7# {[%clk 0:00:02]} 1-0


[Site "https://www.chess.com"]

[Event "Titled Tuesday Blitz August 23 Late 2022"]
[White "Yaksin, Oleg"]
[Black "Kosteniuk, Alexandra"]
[WhiteFideId "24105880"]
[BlackFideId "4128125"]
[WhiteElo "2256"]
[BlackElo "2469"]
[Result "0-1"]
[Round "07"]
[TimeControl "180+1"]
[Date "2022.08.23"]
[WhiteClock "0:00:04"]
[BlackClock "0:00:31"]

1. d4 {[%clk 0:03:00]}  f5 {[%clk 0:02:59]} 2. Nc3 {[%clk 0:03:00]}  Nf6 {[%clk 0:02:59]} 3. Bg5 {[%clk 0:03:00]}  d5 {[%clk 0:02:59]} 4. Bxf6 {[%clk 0:03:00]}  exf6 {[%clk 0:02:59]} 5. e3 {[%clk 0:03:01]}  c6 {[%clk 0:02:58]} 6. Bd3 {[%clk 0:02:58]}  Qb6 {[%clk 0:02:54]} 7. Qc1 {[%clk 0:02:45]}  Na6 {[%clk 0:02:51]} 8. a3 {[%clk 0:02:43]}  Be6 {[%clk 0:02:37]} 9. Nge2 {[%clk 0:02:42]}  g6 {[%clk 0:02:37]} 10. Nf4 {[%clk 0:02:34]}  Bf7 {[%clk 0:02:37]} 11. h3 {[%clk 0:02:31]}  Bd6 {[%clk 0:02:36]} 12. Nce2 {[%clk 0:02:27]}  g5 {[%clk 0:02:29]} 13. Bxa6 {[%clk 0:02:04]}  Qxa6 {[%clk 0:02:22]} 14. Nd3 {[%clk 0:02:03]}  b6 {[%clk 0:02:19]} 15. h4 {[%clk 0:01:56]}  O-O-O {[%clk 0:02:03]} 16. hxg5 {[%clk 0:01:54]}  fxg5 {[%clk 0:02:04]} 17. b3 {[%clk 0:01:48]}  Rde8 {[%clk 0:01:58]} 18. Rh6 {[%clk 0:01:37]}  Bg6 {[%clk 0:01:55]} 19. Ne5 {[%clk 0:01:23]}  Bxe5 {[%clk 0:01:53]} 20. dxe5 {[%clk 0:01:24]}  Rxe5 {[%clk 0:01:50]} 21. Qb2 {[%clk 0:01:06]}  Rhe8 {[%clk 0:01:50]} 22. g3 {[%clk 0:01:04]}  c5 {[%clk 0:01:44]} 23. b4 {[%clk 0:00:52]}  d4 {[%clk 0:01:39]} 24. bxc5 {[%clk 0:00:51]}  dxe3 {[%clk 0:01:40]} 25. f4 {[%clk 0:00:37]}  Rxc5 {[%clk 0:01:32]} 26. Rd1 {[%clk 0:00:35]}  Qb7 {[%clk 0:01:26]} 27. Qd4 {[%clk 0:00:19]}  a5 {[%clk 0:01:14]} 28. fxg5 {[%clk 0:00:13]}  Kb8 {[%clk 0:01:15]} 29. Rh2 {[%clk 0:00:10]}  Rxc2 {[%clk 0:01:05]} 30. Qf4+ {[%clk 0:00:08]}  Ka7 {[%clk 0:01:04]} 31. Nd4 {[%clk 0:00:06]}  Rc5 {[%clk 0:00:54]} 32. Rb2 {[%clk 0:00:05]}  Qh1+ {[%clk 0:00:48]} 33. Qf1 {[%clk 0:00:02]}  Qxf1+ {[%clk 0:00:47]} 34. Kxf1 {[%clk 0:00:03]}  f4 {[%clk 0:00:44]} 35. gxf4 {[%clk 0:00:03]}  Re4 {[%clk 0:00:43]} 36. Ne2 {[%clk 0:00:03]}  Rec4 {[%clk 0:00:39]} 37. Rd7+ {[%clk 0:00:03]}  Rc7 {[%clk 0:00:37]} 38. Kg2 {[%clk 0:00:03]}  Rxd7 {[%clk 0:00:35]} 39. Kf3 {[%clk 0:00:04]}  Bh5+ {[%clk 0:00:34]} 40. Kxe3 {[%clk 0:00:03]}  Re7+ {[%clk 0:00:33]} 41. Kf2 {[%clk 0:00:04]}  Bxe2 {[%clk 0:00:32]} 42. f5 {[%clk 0:00:04]}  Rf4+ {[%clk 0:00:31]} 0-1


[Site "https://www.chess.com"]

[Event "Titled Tuesday Blitz August 23 Late 2022"]
[White "Yurovskykh, Oleksandr"]
[Black "Dubov, Daniil"]
[WhiteFideId "14134020"]
[BlackFideId "24126055"]
[WhiteElo "2292"]
[BlackElo "2791"]
[Result "0-1"]
[Round "07"]
[TimeControl "180+1"]
[Date "2022.08.23"]
[WhiteClock "0:00:05"]
[BlackClock "0:00:04"]

1. d4 {[%clk 0:03:00]}  Nf6 {[%clk 0:02:59]} 2. Nf3 {[%clk 0:03:01]}  g6 {[%clk 0:02:59]} 3. Bg5 {[%clk 0:03:01]}  Bg7 {[%clk 0:02:59]} 4. Nbd2 {[%clk 0:03:01]}  O-O {[%clk 0:02:59]} 5. c3 {[%clk 0:03:02]}  d5 {[%clk 0:02:59]} 6. e3 {[%clk 0:03:02]}  Nbd7 {[%clk 0:03:00]} 7. Be2 {[%clk 0:03:03]}  Re8 {[%clk 0:03:00]} 8. O-O {[%clk 0:03:03]}  e5 {[%clk 0:03:00]} 9. Bh4 {[%clk 0:03:03]}  c6 {[%clk 0:02:57]} 10. Bg3 {[%clk 0:03:02]}  exd4 {[%clk 0:02:41]} 11. cxd4 {[%clk 0:03:01]}  a5 {[%clk 0:02:41]} 12. Rc1 {[%clk 0:03:00]}  Nh5 {[%clk 0:02:38]} 13. Bd6 {[%clk 0:02:52]}  Bf8 {[%clk 0:02:32]} 14. Bxf8 {[%clk 0:02:51]}  Nxf8 {[%clk 0:02:33]} 15. Ne5 {[%clk 0:02:40]}  Ng7 {[%clk 0:02:33]} 16. Nd3 {[%clk 0:02:40]}  Nf5 {[%clk 0:02:22]} 17. Re1 {[%clk 0:02:22]}  Nd6 {[%clk 0:02:18]} 18. Nc5 {[%clk 0:02:14]}  Ne6 {[%clk 0:02:13]} 19. Nxe6 {[%clk 0:02:11]}  Bxe6 {[%clk 0:02:12]} 20. Nb3 {[%clk 0:02:12]}  Qg5 {[%clk 0:02:08]} 21. Nc5 {[%clk 0:02:09]}  Bh3 {[%clk 0:02:07]} 22. Bf1 {[%clk 0:02:07]}  Bg4 {[%clk 0:02:05]} 23. Qc2 {[%clk 0:02:00]}  h5 {[%clk 0:01:56]} 24. Kh1 {[%clk 0:01:44]}  h4 {[%clk 0:01:51]} 25. h3 {[%clk 0:01:40]}  Bf5 {[%clk 0:01:49]} 26. Bd3 {[%clk 0:01:39]}  Bxd3 {[%clk 0:01:44]} 27. Nxd3 {[%clk 0:01:37]}  Re7 {[%clk 0:01:39]} 28. Qe2 {[%clk 0:01:36]}  Rae8 {[%clk 0:01:34]} 29. Qf3 {[%clk 0:01:36]}  Re6 {[%clk 0:01:30]} 30. Qf4 {[%clk 0:01:30]}  Qe7 {[%clk 0:01:25]} 31. Rc2 {[%clk 0:01:22]}  Kg7 {[%clk 0:00:56]} 32. Rec1 {[%clk 0:01:20]}  Ne4 {[%clk 0:00:47]} 33. Kg1 {[%clk 0:01:19]}  Rh8 {[%clk 0:00:29]} 34. Nc5 {[%clk 0:01:16]}  Nxc5 {[%clk 0:00:29]} 35. Rxc5 {[%clk 0:01:15]}  Qd8 {[%clk 0:00:23]} 36. b3 {[%clk 0:01:13]}  Rh5 {[%clk 0:00:22]} 37. a3 {[%clk 0:01:06]}  Re4 {[%clk 0:00:16]} 38. Qh2 {[%clk 0:00:47]}  Qb6 {[%clk 0:00:16]} 39. R1c3 {[%clk 0:00:47]}  Rf5 {[%clk 0:00:15]} 40. Qd6 {[%clk 0:00:45]}  Qa6 {[%clk 0:00:14]} 41. Rc1 {[%clk 0:00:35]}  Re6 {[%clk 0:00:11]} 42. Qd8 {[%clk 0:00:31]}  Ref6 {[%clk 0:00:11]} 43. R5c2 {[%clk 0:00:29]}  Qb5 {[%clk 0:00:10]} 44. a4 {[%clk 0:00:18]}  Qxb3 {[%clk 0:00:09]} 45. Qxa5 {[%clk 0:00:18]}  Qd3 {[%clk 0:00:08]} 46. Qd2 {[%clk 0:00:18]}  Qe4 {[%clk 0:00:08]} 47. Rb2 {[%clk 0:00:15]}  Rg5 {[%clk 0:00:07]} 48. f4 {[%clk 0:00:13]}  Rg3 {[%clk 0:00:07]} 49. Rc3 {[%clk 0:00:08]}  g5 {[%clk 0:00:06]} 50. Rxb7 {[%clk 0:00:06]}  g4 {[%clk 0:00:04]} 51. Kh2 {[%clk 0:00:05]}  gxh3 {[%clk 0:00:04]} 52. gxh3 {[%clk 0:00:05]}  Rfg6 {[%clk 0:00:04]} 0-1


[Site "https://www.chess.com"]

[Event "Titled Tuesday Blitz August 23 Late 2022"]
[White "Aghasiyev, Kamal"]
[Black "Salem, A.R. Saleh"]
[WhiteFideId "13402854"]
[BlackFideId "9301348"]
[WhiteElo "2210"]
[BlackElo "2674"]
[Result "1/2-1/2"]
[Round "08"]
[TimeControl "180+1"]
[Date "2022.08.23"]
[WhiteClock "0:00:10"]
[BlackClock "0:01:09"]

1. d4 {[%clk 0:02:59]}  d5 {[%clk 0:02:59]} 2. c4 {[%clk 0:02:57]}  e6 {[%clk 0:02:59]} 3. Nc3 {[%clk 0:02:55]}  Nf6 {[%clk 0:03:00]} 4. cxd5 {[%clk 0:02:54]}  exd5 {[%clk 0:03:00]} 5. Bg5 {[%clk 0:02:55]}  c6 {[%clk 0:03:01]} 6. e3 {[%clk 0:02:55]}  h6 {[%clk 0:03:02]} 7. Bh4 {[%clk 0:02:53]}  Be7 {[%clk 0:03:03]} 8. Bd3 {[%clk 0:02:54]}  O-O {[%clk 0:03:03]} 9. Qc2 {[%clk 0:02:54]}  Re8 {[%clk 0:03:04]} 10. Nge2 {[%clk 0:02:51]}  Nbd7 {[%clk 0:03:04]} 11. O-O {[%clk 0:02:51]}  Nh5 {[%clk 0:03:04]} 12. Bxe7 {[%clk 0:02:50]}  Qxe7 {[%clk 0:03:05]} 13. Rae1 {[%clk 0:02:50]}  Nf8 {[%clk 0:03:06]} 14. Nc1 {[%clk 0:02:47]}  Bd7 {[%clk 0:03:07]} 15. Nb3 {[%clk 0:02:40]}  Rad8 {[%clk 0:03:07]} 16. Qd2 {[%clk 0:02:36]}  Bc8 {[%clk 0:03:07]} 17. f3 {[%clk 0:02:30]}  Ne6 {[%clk 0:03:07]} 18. Bb1 {[%clk 0:02:27]}  b6 {[%clk 0:03:07]} 19. Qd3 {[%clk 0:02:08]}  Nf6 {[%clk 0:03:06]} 20. Rd1 {[%clk 0:01:26]}  Nc7 {[%clk 0:03:04]} 21. Rfe1 {[%clk 0:01:25]}  Ba6 {[%clk 0:03:05]} 22. Qd2 {[%clk 0:01:25]}  Ne6 {[%clk 0:03:05]} 23. Qf2 {[%clk 0:01:24]}  Qb4 {[%clk 0:02:56]} 24. Nc1 {[%clk 0:01:19]}  Qd6 {[%clk 0:02:43]} 25. Nd3 {[%clk 0:01:13]}  c5 {[%clk 0:02:43]} 26. Ne5 {[%clk 0:01:12]}  b5 {[%clk 0:02:31]} 27. a3 {[%clk 0:01:02]}  Rb8 {[%clk 0:02:24]} 28. Bd3 {[%clk 0:00:53]}  b4 {[%clk 0:02:16]} 29. axb4 {[%clk 0:00:51]}  cxd4 {[%clk 0:01:57]} 30. exd4 {[%clk 0:00:46]}  Rxb4 {[%clk 0:01:58]} 31. Bxa6 {[%clk 0:00:43]}  Qxa6 {[%clk 0:01:59]} 32. Nd3 {[%clk 0:00:33]}  Rbb8 {[%clk 0:01:57]} 33. Nc5 {[%clk 0:00:32]}  Qc6 {[%clk 0:01:49]} 34. Nxe6 {[%clk 0:00:27]}  Rxe6 {[%clk 0:01:50]} 35. Rxe6 {[%clk 0:00:27]}  Qxe6 {[%clk 0:01:51]} 36. Ra1 {[%clk 0:00:26]}  Qb6 {[%clk 0:01:50]} 37. h3 {[%clk 0:00:22]}  h5 {[%clk 0:01:44]} 38. Na4 {[%clk 0:00:18]}  Qb5 {[%clk 0:01:36]} 39. Nc5 {[%clk 0:00:17]}  Qxb2 {[%clk 0:01:28]} 40. Qxb2 {[%clk 0:00:15]}  Rxb2 {[%clk 0:01:29]} 41. Rxa7 {[%clk 0:00:15]}  h4 {[%clk 0:01:29]} 42. Ra8+ {[%clk 0:00:11]}  Kh7 {[%clk 0:01:29]} 43. Ra7 {[%clk 0:00:11]}  Rb1+ {[%clk 0:01:07]} 44. Kf2 {[%clk 0:00:11]}  Rb2+ {[%clk 0:01:08]} 45. Kg1 {[%clk 0:00:11]}  Kg8 {[%clk 0:01:09]} 46. Ra8+ {[%clk 0:00:09]}  Kh7 {[%clk 0:01:09]} 47. Ra7 {[%clk 0:00:10]} 1/2-1/2


[Site "https://www.chess.com"]

[Event "Titled Tuesday Blitz August 23 Late 2022"]
[White "Ansh M Shah"]
[Black "Leitao, Rafael"]
[WhiteFideId "25033379"]
[BlackFideId "2101246"]
[WhiteElo "1819"]
[BlackElo "2609"]
[Result "0-1"]
[Round "08"]
[TimeControl "180+1"]
[Date "2022.08.23"]
[WhiteClock "0:00:08"]
[BlackClock "0:00:41"]

1. d4 {[%clk 0:03:00]}  Nf6 {[%clk 0:02:58]} 2. c4 {[%clk 0:02:57]}  e6 {[%clk 0:02:57]} 3. g3 {[%clk 0:02:57]}  d5 {[%clk 0:02:57]} 4. Bg2 {[%clk 0:02:57]}  Bb4+ {[%clk 0:02:57]} 5. Nd2 {[%clk 0:02:57]}  O-O {[%clk 0:02:56]} 6. Nf3 {[%clk 0:02:56]}  b6 {[%clk 0:02:54]} 7. O-O {[%clk 0:02:56]}  Bb7 {[%clk 0:02:54]} 8. Ne5 {[%clk 0:02:54]}  Be7 {[%clk 0:02:52]} 9. Qc2 {[%clk 0:02:53]}  c5 {[%clk 0:02:44]} 10. e3 {[%clk 0:02:50]}  Nbd7 {[%clk 0:02:42]} 11. cxd5 {[%clk 0:02:48]}  exd5 {[%clk 0:02:33]} 12. Ndf3 {[%clk 0:02:43]}  Rc8 {[%clk 0:02:26]} 13. Qe2 {[%clk 0:02:34]}  Bd6 {[%clk 0:02:04]} 14. Bh3 {[%clk 0:02:33]}  Rc7 {[%clk 0:02:01]} 15. Bd2 {[%clk 0:02:07]}  Re8 {[%clk 0:01:47]} 16. Bc3 {[%clk 0:02:02]}  Bxe5 {[%clk 0:01:44]} 17. dxe5 {[%clk 0:01:11]}  Ne4 {[%clk 0:01:43]} 18. e6 {[%clk 0:01:11]}  fxe6 {[%clk 0:01:37]} 19. Be5 {[%clk 0:01:10]}  Nxe5 {[%clk 0:01:31]} 20. Nxe5 {[%clk 0:01:11]}  Ng5 {[%clk 0:01:23]} 21. Bg2 {[%clk 0:01:03]}  Nf7 {[%clk 0:01:24]} 22. Nf3 {[%clk 0:00:58]}  e5 {[%clk 0:01:18]} 23. Nh4 {[%clk 0:00:52]}  e4 {[%clk 0:01:14]} 24. Rad1 {[%clk 0:00:48]}  Qe7 {[%clk 0:01:09]} 25. Rd2 {[%clk 0:00:32]}  Ne5 {[%clk 0:01:06]} 26. Rfd1 {[%clk 0:00:29]}  Nd3 {[%clk 0:00:59]} 27. Bf1 {[%clk 0:00:20]}  c4 {[%clk 0:00:55]} 28. b3 {[%clk 0:00:19]}  Rf8 {[%clk 0:00:54]} 29. Qg4 {[%clk 0:00:17]}  Qf6 {[%clk 0:00:46]} 30. bxc4 {[%clk 0:00:15]}  dxc4 {[%clk 0:00:46]} 31. Ng2 {[%clk 0:00:11]}  Nxf2 {[%clk 0:00:42]} 32. Rc1 {[%clk 0:00:08]}  Nxg4 {[%clk 0:00:41]} 0-1


[Site "https://www.chess.com"]

[Event "Titled Tuesday Blitz August 23 Late 2022"]
[White "Bok, Benjamin"]
[Black "Wirig, Anthony"]
[WhiteFideId "1017063"]
[BlackFideId "615013"]
[WhiteElo "2658"]
[BlackElo "2474"]
[Result "1-0"]
[Round "08"]
[TimeControl "180+1"]
[Date "2022.08.23"]
[WhiteClock "0:00:10"]
[BlackClock "0:00:15"]

1. d4 {[%clk 0:03:00]}  Nf6 {[%clk 0:02:59]} 2. c4 {[%clk 0:03:00]}  e6 {[%clk 0:02:59]} 3. Nc3 {[%clk 0:03:01]}  Bb4 {[%clk 0:02:59]} 4. Qc2 {[%clk 0:03:01]}  d5 {[%clk 0:02:57]} 5. a3 {[%clk 0:03:01]}  Bxc3+ {[%clk 0:02:49]} 6. Qxc3 {[%clk 0:03:02]}  O-O {[%clk 0:02:47]} 7. Bg5 {[%clk 0:03:01]}  dxc4 {[%clk 0:02:37]} 8. Qxc4 {[%clk 0:03:02]}  b6 {[%clk 0:02:37]} 9. Rd1 {[%clk 0:03:02]}  Ba6 {[%clk 0:02:32]} 10. Qa4 {[%clk 0:03:01]}  Qd7 {[%clk 0:02:29]} 11. Qc2 {[%clk 0:03:01]}  Qc6 {[%clk 0:02:25]} 12. Qxc6 {[%clk 0:03:01]}  Nxc6 {[%clk 0:02:26]} 13. Bxf6 {[%clk 0:03:02]}  gxf6 {[%clk 0:02:26]} 14. Nf3 {[%clk 0:03:02]}  Rac8 {[%clk 0:02:14]} 15. e3 {[%clk 0:03:02]}  Bxf1 {[%clk 0:02:13]} 16. Rxf1 {[%clk 0:03:03]}  Ne7 {[%clk 0:02:11]} 17. Rc1 {[%clk 0:03:02]}  Rfd8 {[%clk 0:01:49]} 18. Ke2 {[%clk 0:03:02]}  Rd5 {[%clk 0:01:49]} 19. Rc4 {[%clk 0:02:51]}  Kf8 {[%clk 0:01:40]} 20. Rfc1 {[%clk 0:02:49]}  Ke8 {[%clk 0:01:39]} 21. Rxc7 {[%clk 0:02:43]}  Rxc7 {[%clk 0:01:37]} 22. Rxc7 {[%clk 0:02:44]}  a5 {[%clk 0:01:38]} 23. Nd2 {[%clk 0:02:40]}  Rb5 {[%clk 0:01:29]} 24. Nc4 {[%clk 0:02:37]}  Kd8 {[%clk 0:01:30]} 25. Rb7 {[%clk 0:02:36]}  Nd5 {[%clk 0:01:14]} 26. g3 {[%clk 0:01:39]}  f5 {[%clk 0:01:09]} 27. Kd3 {[%clk 0:01:36]}  a4 {[%clk 0:00:59]} 28. Kc2 {[%clk 0:01:34]}  f6 {[%clk 0:00:56]} 29. Rxh7 {[%clk 0:01:14]}  e5 {[%clk 0:00:49]} 30. Ra7 {[%clk 0:00:51]}  exd4 {[%clk 0:00:44]} 31. exd4 {[%clk 0:00:52]}  Rb3 {[%clk 0:00:44]} 32. Nd2 {[%clk 0:00:50]}  Rb5 {[%clk 0:00:39]} 33. h4 {[%clk 0:00:47]}  f4 {[%clk 0:00:39]} 34. g4 {[%clk 0:00:44]}  Nc7 {[%clk 0:00:34]} 35. Rxa4 {[%clk 0:00:35]}  Rd5 {[%clk 0:00:35]} 36. Nf3 {[%clk 0:00:31]}  Rd6 {[%clk 0:00:27]} 37. h5 {[%clk 0:00:29]}  Re6 {[%clk 0:00:27]} 38. Kd3 {[%clk 0:00:27]}  Kd7 {[%clk 0:00:24]} 39. Ra7 {[%clk 0:00:22]}  Re8 {[%clk 0:00:21]} 40. Nd2 {[%clk 0:00:15]}  Rg8 {[%clk 0:00:16]} 41. Ne4 {[%clk 0:00:15]}  Kc6 {[%clk 0:00:14]} 42. Nxf6 {[%clk 0:00:15]}  Rf8 {[%clk 0:00:15]} 43. d5+ {[%clk 0:00:11]}  Nxd5 {[%clk 0:00:13]} 44. Nxd5 {[%clk 0:00:12]}  Kxd5 {[%clk 0:00:14]} 45. h6 {[%clk 0:00:12]}  Ke5 {[%clk 0:00:14]} 46. h7 {[%clk 0:00:13]}  Rd8+ {[%clk 0:00:15]} 47. Ke2 {[%clk 0:00:12]}  Kf6 {[%clk 0:00:15]} 48. Kf3 {[%clk 0:00:12]}  Kg5 {[%clk 0:00:15]} 49. Rg7+ {[%clk 0:00:11]}  Kh4 {[%clk 0:00:15]} 50. Rg8 {[%clk 0:00:10]} 1-0


[Site "https://www.chess.com"]